bitfinex/quotes_BTCUSD_20240712
["timestamp","ask_amount","ask_price","bid_price","bid_amount"]
[1720754870915,0.97198386,57185.0,57184.0,0.000913]
[1720754872604,0.48234586,57185.0,57184.0,0.000913]
[1720754872834,0.12529774,57185.0,57184.0,0.061713]
[1720754873240,0.49252574,57185.0,57184.0,0.061713]
[1720754873869,0.24770674,57185.0,57184.0,0.061713]
[1720754874011,0.24770674,57185.0,57184.0,0.0758043]
[1720754874430,0.24770674,57185.0,57184.0,0.0798043]
[1720754874634,0.12529774,57185.0,57184.0,0.16491865]
[1720754874836,0.222397,57191.0,57184.0,0.16491865]
[1720754875040,0.02516563,57192.0,57191.0,0.1469]
[1720754875243,0.0444,57205.0,57191.0,0.1469]
[1720754875244,0.122386,57196.0,57191.0,0.1469]
[1720754876367,0.122382,57198.0,57191.0,0.1469]
[1720754876594,0.122382,57198.0,57191.0,0.19469122]
[1720754876595,0.002,57196.0,57191.0,0.19469122]
[1720754877464,0.222384,57197.0,57191.0,0.19469122]
[1720754877696,0.244739,57204.0,57196.0,0.08511435]
[1720754877867,0.004,57198.0,57197.0,0.0651]
[1720754878095,0.004,57198.0,57197.0,0.09270999]
[1720754878304,0.004,57198.0,57197.0,0.17020999]
[1720754879497,0.1,57202.0,57197.0,0.17020999]
[1720754879662,0.02197406,57201.0,57197.0,0.17020999]
[1720754879881,0.1,57202.0,57197.0,0.17020999]
[1720754880082,0.02197443,57201.0,57198.0,0.02960966]
[1720754880257,0.1,57202.0,57198.0,0.02960966]
[1720754880463,0.1,57202.0,57197.0,0.17020999]
[1720754880464,0.12,57198.0,57197.0,0.009]
[1720754880736,0.99867198,57198.0,57197.0,0.009]
[1720754880930,0.99867198,57198.0,57197.0,0.00894001]
[1720754880931,1.06897198,57198.0,57197.0,0.00894001]
[1720754881053,0.122409,57185.0,57184.0,0.000913]
[1720754881503,0.856866,57185.0,57184.0,0.000913]
[1720754882330,0.976866,57185.0,57184.0,0.000913]
[1720754882534,1.076866,57185.0,57184.0,0.000913]
[1720754883916,1.078866,57185.0,57184.0,0.000913]
[1720754884350,1.078866,57185.0,57168.0,0.00306353]
[1720754884351,0.12,57175.0,57170.0,0.0612]
[1720754884557,0.122443,57169.0,57168.0,0.51068611]
[1720754884782,0.244884,57170.0,57166.0,0.0612]
[1720754885019,0.122443,57170.0,57166.0,0.0612]
[1720754885206,0.244878,57172.0,57166.0,0.0612]
[1720754885207,0.122444,57169.0,57166.0,0.0612]
[1720754885835,0.122448,57167.0,57166.0,0.0612]
[1720754886067,0.244913,57163.0,57162.0,0.0612]
[1720754886268,0.1,57167.0,57162.0,0.08334144]
[1720754886474,0.1,57167.0,57166.0,0.08511435]
[1720754886934,0.1,57167.0,57166.0,0.09711435]
[1720754887374,0.1,57167.0,57166.0,0.08511435]
[1720754887816,0.101,57167.0,57166.0,0.08511435]
[1720754888456,0.101,57167.0,57166.0,0.09711435]
[1720754888854,0.101,57167.0,57166.0,0.11294578]
[1720754889058,0.101,57167.0,57166.0,0.09711435]
[1720754889264,0.101,57167.0,57166.0,0.08511435]
[1720754890536,0.001,57167.0,57166.0,0.16501435]
[1720754890770,0.001,57167.0,57166.0,0.46826435]
[1720754890967,0.001,57167.0,57166.0,0.95806435]
[1720754891193,0.001,57167.0,57166.0,1.30092696]
[1720754891395,0.001,57167.0,57166.0,1.05602696]
[1720754891821,0.244828,57183.0,57168.0,0.12]
[1720754892026,0.122421,57180.0,57173.0,0.08511435]
[1720754892233,0.244828,57183.0,57174.0,0.0799]
[1720754892443,0.122421,57180.0,57175.0,0.00306353]
[1720754892651,0.1,57179.0,57175.0,0.00306353]
[1720754893074,0.1,57179.0,57176.0,0.0608]
[1720754893251,0.1,57179.0,57177.0,0.00306353]
[1720754894060,0.1,57179.0,57176.0,0.08368779]
[1720754894061,0.002,57183.0,57176.0,0.20611579]
[1720754894268,0.002,57183.0,57177.0,0.00306353]
[1720754894496,0.002,57183.0,57177.0,0.07437104]
[1720754894648,0.22241,57185.0,57177.0,0.07437104]
[1720754894649,0.17441,57185.0,57177.0,0.07437104]
[1720754895824,0.17441,57185.0,57177.0,0.07737104]
[1720754896025,0.296819,57185.0,57177.0,0.07737104]
[1720754896303,0.122424,57178.0,57177.0,0.00606353]
[1720754896487,0.24484,57181.0,57171.0,0.061]
[1720754896696,0.122427,57177.0,57172.0,0.00306353]
[1720754896898,0.122427,57177.0,57172.0,0.02974428]
[1720754897111,0.244845,57179.0,57172.0,0.02974428]
[1720754897112,0.122429,57176.0,57172.0,0.02974428]
[1720754897302,0.122429,57176.0,57172.0,0.02668075]
[1720754897499,0.122429,57176.0,57173.0,0.01679808]
[1720754897894,0.122429,57176.0,57171.0,0.061]
[1720754897895,0.244855,57177.0,57171.0,0.061]
[1720754898087,0.122435,57173.0,57171.0,0.061]
[1720754899336,0.122437,57172.0,57171.0,0.061]
[1720754899542,0.612187,57172.0,57171.0,0.07513]
[1720754899739,0.612187,57172.0,57171.0,0.007]
[1720754899955,0.367312,57172.0,57171.0,0.007]
[1720754900356,0.122439,57171.0,57170.0,0.0803]
[1720754902338,0.123439,57171.0,57170.0,0.0903]
[1720754903181,0.123439,57171.0,57170.0,0.02]
[1720754903803,0.368318,57171.0,57170.0,0.02]
[1720754904970,0.123439,57171.0,57170.0,0.02]
[1720754907046,0.368318,57171.0,57170.0,0.02]
[1720754907660,0.123439,57171.0,57170.0,0.02]
[1720754907861,0.26986339,57174.0,57170.0,0.03607]
[1720754908254,0.122439,57171.0,57170.0,0.03607]
[1720754908688,0.122439,57171.0,57170.0,0.02]
[1720754908879,0.367318,57171.0,57170.0,0.01]
[1720754909291,0.367318,57171.0,57170.0,0.016]
[1720754909665,0.367318,57171.0,57168.0,0.0627]
[1720754909884,0.122443,57169.0,57168.0,0.0627]
[1720754911685,0.122442,57170.0,57168.0,0.0727]
[1720754912086,0.244871,57173.0,57168.0,0.0727]
[1720754912294,0.122441,57171.0,57169.0,0.00306353]
[1720754912473,0.02128865,57170.0,57169.0,0.00306353]
[1720754912688,0.123441,57171.0,57168.0,0.0827]
[1720754913074,0.122441,57171.0,57168.0,0.0627]
[1720754913287,0.02127461,57170.0,57168.0,0.0627]
[1720754913534,0.123441,57171.0,57169.0,0.01006353]
[1720754913708,0.02128267,57170.0,57169.0,0.01006353]
[1720754913916,0.02128267,57170.0,57168.0,0.0627]
[1720754914278,0.122438,57172.0,57169.0,0.00306353]
[1720754914485,0.14472221,57171.0,57169.0,0.00306353]
[1720754914702,0.02128221,57170.0,57168.0,0.0697]
[1720754914916,0.02128221,57170.0,57169.0,0.01813988]
[1720754915125,0.02128221,57170.0,57169.0,0.01206353]
[1720754915323,0.02128221,57170.0,57169.0,0.009]
[1720754915747,0.122438,57172.0,57169.0,0.009]
[1720754915951,0.02132609,57171.0,57169.0,0.009]
[1720754916115,0.02232609,57170.0,57169.0,0.009]
[1720754916516,0.02132609,57170.0,57168.0,0.0627]
[1720754916718,0.122438,57172.0,57169.0,0.00306353]
[1720754916925,0.001,57170.0,57169.0,0.15143988]
[1720754917176,0.001,57170.0,57169.0,1.2103917]
[1720754917413,0.001,57170.0,57169.0,1.6722787]
[1720754917817,0.001,57170.0,57169.0,2.02266735]
[1720754918016,0.122396,57191.0,57178.0,0.732122]
[1720754918229,0.122396,57191.0,57178.0,0.879622]
[1720754918435,0.1224,57190.0,57178.0,0.759622]
[1720754918611,0.02500964,57184.0,57178.0,0.1475]
[1720754919177,0.14742164,57184.0,57178.0,0.1475]
[1720754919378,0.02500964,57184.0,57178.0,0.1475]
[1720754919737,0.122416,57182.0,57178.0,0.1475]
[1720754920086,0.122416,57182.0,57178.0,0.1744932]
[1720754920295,0.122416,57182.0,57178.0,0.1565]
[1720754920492,0.14742264,57184.0,57178.0,0.1565]
[1720754920906,0.14742264,57184.0,57178.0,0.1665]
[1720754921367,0.042212,57179.0,57178.0,0.1665]
[1720754922965,0.042212,57179.0,57178.0,0.898622]
[1720754924445,0.042212,57179.0,57178.0,0.653773]
[1720754924653,0.042212,57179.0,57178.0,0.7436357]
[1720754925077,0.02500964,57184.0,57178.0,0.7436357]
[1720754925078,0.122403,57188.0,57180.0,0.122419]
[1720754925285,0.122401,57189.0,57181.0,0.00306353]
[1720754925459,0.02141351,57188.0,57181.0,0.00306353]
[1720754925594,0.122401,57189.0,57183.0,0.00306353]
[1720754925794,0.02126304,57188.0,57183.0,0.00306353]
[1720754926007,0.14643901,57190.0,57184.0,0.0609]
[1720754926211,0.021262,57189.0,57185.0,0.00306353]
[1720754926411,0.14643901,57190.0,57185.0,0.00306353]
[1720754926618,0.02126187,57189.0,57185.0,0.00306353]
[1720754926879,0.002,57188.0,57185.0,0.00306353]
[1720754927413,0.1,57189.0,57185.0,0.00306353]
[1720754927767,0.1,57189.0,57186.0,0.02742974]
[1720754928090,0.1,57189.0,57187.0,0.00306353]
[1720754928505,0.1,57189.0,57186.0,0.0764]
[1720754928706,0.12904001,57190.0,57186.0,0.0764]
[1720754928880,0.12904001,57190.0,57187.0,0.00306353]
[1720754929296,0.25143901,57190.0,57187.0,0.00306353]
[1720754929668,0.24643901,57190.0,57187.0,0.00306353]
[1720754929878,0.003,57189.0,57187.0,0.00306353]
[1720754930078,0.125401,57189.0,57187.0,0.00306353]
[1720754930327,0.1,57188.0,57187.0,0.00306353]
[1720754930463,0.1,57188.0,57185.0,0.00306353]
[1720754930874,0.122406,57187.0,57185.0,0.00306353]
[1720754931285,0.122406,57187.0,57179.0,0.266522]
[1720754931489,0.122406,57187.0,57180.0,0.0756226]
[1720754931923,0.12241,57185.0,57180.0,0.0756226]
[1720754932372,0.12241,57185.0,57177.0,0.122426]
[1720754932373,0.12243,57176.0,57173.0,0.0656]
[1720754933110,0.122431,57175.0,57173.0,0.0656]
[1720754933362,0.244858,57176.0,57173.0,0.0656]
[1720754933585,0.244855,57177.0,57173.0,0.01449]
[1720754933834,0.02213181,57176.0,57173.0,0.01449]
[1720754934066,0.244855,57177.0,57173.0,0.013]
[1720754934301,0.122433,57174.0,57173.0,0.013]
[1720754934545,0.122436,57173.0,57167.0,0.0653]
[1720754936275,0.122436,57173.0,57167.0,0.0713]
[1720754937503,0.24487,57173.0,57167.0,0.13134724]
[1720754937757,0.122442,57170.0,57167.0,0.0713]
[1720754938263,0.244879,57171.0,57167.0,0.0713]
[1720754938264,0.122439,57171.0,57167.0,0.0763]
[1720754938806,0.122439,57171.0,57167.0,0.0703]
[1720754939034,0.122439,57171.0,57167.0,0.0753]
[1720754939262,0.122439,57171.0,57170.0,0.08511435]
[1720754939739,0.24487,57173.0,57170.0,0.08511435]
[1720754939740,0.122438,57172.0,57170.0,0.08511435]
[1720754939999,0.122435,57173.0,57170.0,0.08511435]
[1720754940235,0.14705173,57173.0,57170.0,0.08511435]
[1720754940475,0.14705173,57173.0,57170.0,0.09211435]
[1720754940719,0.26948773,57173.0,57170.0,0.007]
[1720754940956,0.26948773,57173.0,57167.0,0.0733]
[1720754941194,0.26948773,57173.0,57167.0,0.0653]
[1720754941448,0.122437,57172.0,57170.0,0.004]
[1720754942644,0.122437,57172.0,57167.0,0.0653]
[1720754942880,0.122437,57172.0,57170.0,0.008]
[1720754943123,0.122437,57172.0,57167.0,0.0693]
[1720754943390,0.26948773,57173.0,57171.0,0.08511435]
[1720754943391,0.02461673,57173.0,57171.0,0.08511435]
[1720754943627,0.02461673,57173.0,57172.0,0.14466353]
[1720754943875,0.122427,57177.0,57172.0,0.14466353]
[1720754944126,0.1,57176.0,57172.0,0.14466353]
[1720754945058,0.22243,57176.0,57172.0,0.14466353]
[1720754945580,0.22326,57176.0,57172.0,0.14466353]
[1720754945797,0.10083,57176.0,57172.0,0.14466353]
[1720754946287,0.10083,57176.0,57172.0,0.14966353]
[1720754946572,0.00083,57176.0,57175.0,0.122431]
[1720754946826,0.00083,57176.0,57175.0,0.17070169]
[1720754947058,0.00083,57176.0,57175.0,0.810587]
[1720754947527,0.00083,57176.0,57175.0,0.80752347]
[1720754947742,0.00083,57176.0,57175.0,0.81252347]
[1720754947983,0.00083,57176.0,57175.0,0.80902569]
[1720754948217,0.00083,57176.0,57175.0,0.19687069]
[1720754949720,0.00083,57176.0,57175.0,0.19187069]
[1720754949925,0.00083,57176.0,57175.0,0.20487069]
[1720754950433,0.00083,57176.0,57175.0,0.21087069]
[1720754950666,0.00083,57176.0,57175.0,1.19138552]
[1720754950916,0.00083,57176.0,57175.0,0.94052352]
[1720754951901,0.00083,57176.0,57175.0,0.95452352]
[1720754956567,0.00083,57176.0,57175.0,0.34130169]
[1720754956844,0.00083,57176.0,57175.0,0.21887069]
[1720754959558,0.00083,57176.0,57175.0,0.07527069]
[1720754959790,0.14387178,57176.0,57175.0,0.027]
[1720754960012,0.63358578,57176.0,57175.0,0.027]
[1720754960235,0.85358578,57176.0,57175.0,0.027]
[1720754960446,1.09844278,57176.0,57175.0,0.027]
[1720754960866,1.09844278,57176.0,57175.0,0.014]
[1720754961932,0.122439,57171.0,57170.0,0.000913]
[1720754962161,0.14305278,57171.0,57170.0,0.000913]
[1720754962574,0.38793178,57171.0,57170.0,0.000913]
[1720754963223,0.38775184,57171.0,57170.0,0.000913]
[1720754963415,0.38775184,57171.0,57170.0,0.008913]
[1720754963614,0.38775303,57171.0,57170.0,0.008913]
[1720754963864,0.38875303,57171.0,57170.0,0.015913]
[1720754965539,0.38902879,57171.0,57170.0,0.015913]
[1720754966317,0.368318,57171.0,57170.0,0.015913]
[1720754966720,0.38910319,57171.0,57170.0,0.015913]
[1720754966925,0.123439,57171.0,57170.0,0.015913]
[1720754968291,0.368318,57171.0,57170.0,0.015913]
[1720754969750,0.383917,57171.0,57170.0,0.015913]
[1720754975320,0.139038,57171.0,57170.0,0.015913]
[1720754975521,0.016599,57171.0,57170.0,0.17284832]
[1720754979847,0.016599,57171.0,57170.0,0.015913]
[1720754979848,0.139038,57171.0,57170.0,0.015913]
[1720754979965,0.383917,57171.0,57170.0,0.015913]
[1720754982204,0.139038,57171.0,57170.0,0.015913]
[1720754982916,0.016599,57171.0,57170.0,0.015913]
[1720754983666,0.03758861,57171.0,57170.0,0.015913]
[1720754983875,0.016599,57171.0,57170.0,0.015913]
[1720754984076,0.016599,57171.0,57167.0,0.06446315]
[1720754984279,0.016599,57171.0,57167.0,0.04539516]
[1720754985133,0.015599,57171.0,57167.0,0.04539516]
[1720754985296,0.015599,57171.0,57167.0,0.05239516]
[1720754985499,0.02107882,57170.0,57167.0,0.05239516]
[1720754985703,0.015599,57171.0,57167.0,0.05239516]
[1720754985913,0.02107835,57170.0,57167.0,0.05239516]
[1720754986113,0.015599,57171.0,57167.0,0.05239516]
[1720754986316,0.02107931,57170.0,57167.0,0.05239516]
[1720754986663,0.0210795,57169.0,57167.0,0.05239516]
[1720754986827,0.015599,57171.0,57167.0,0.08543988]
[1720754987027,0.02108017,57170.0,57167.0,0.08543988]
[1720754987190,0.02108017,57169.0,57168.0,0.06]
[1720754987388,0.02109499,57169.0,57168.0,0.06]
[1720754989044,0.02209499,57169.0,57168.0,0.06]
[1720754989473,0.02309499,57169.0,57168.0,0.068]
[1720754989850,0.02209499,57169.0,57168.0,0.068]
[1720754990299,0.02209499,57169.0,57168.0,0.077]
[1720754990471,0.02309499,57169.0,57168.0,0.077]
[1720754991096,0.02293476,57169.0,57168.0,0.077]
[1720754991322,0.02293476,57169.0,57168.0,0.017]
[1720754991501,0.49332829,57169.0,57168.0,0.017]
[1720754991713,0.49026476,57169.0,57168.0,0.017]
[1720754992301,0.49332829,57169.0,57168.0,0.017]
[1720754992521,0.73821529,57169.0,57168.0,0.017]
[1720754993214,1.23653876,57169.0,57168.0,0.017]
[1720754993456,0.244936,57158.0,57153.0,0.0815]
[1720754993672,0.0662,57159.0,57150.0,0.009097]
[1720754993673,0.122482,57151.0,57150.0,0.009097]
[1720754993869,0.367447,57151.0,57150.0,0.009097]
[1720754994296,0.14230772,57151.0,57150.0,0.009097]
[1720754994522,0.122482,57151.0,57150.0,0.009097]
[1720754995820,0.123482,57151.0,57150.0,0.015097]
[1720754997899,0.124482,57151.0,57150.0,0.022097]
[1720754998712,0.124482,57151.0,57150.0,0.10721135]
[1720754998713,0.002,57151.0,57150.0,0.10721135]
[1720754999941,0.002,57151.0,57150.0,0.51702589]
[1720755000835,0.002,57151.0,57150.0,0.76199489]
[1720755001257,0.002,57151.0,57150.0,0.39702589]
[1720755001461,0.002,57151.0,57150.0,0.18942754]
[1720755002699,0.002,57151.0,57150.0,0.19292664]
[1720755003111,0.002,57151.0,57150.0,0.76199489]
[1720755003538,0.002,57151.0,57150.0,1.02996389]
[1720755003739,0.002,57151.0,57150.0,0.66499489]
[1720755003965,0.002,57151.0,57150.0,0.90996389]
[1720755004175,0.002,57151.0,57150.0,1.02996389]
[1720755004803,0.002,57151.0,57150.0,0.90996389]
[1720755005015,0.002,57151.0,57150.0,1.02996389]
[1720755006775,0.002,57151.0,57150.0,1.67493289]
[1720755007647,0.001,57151.0,57150.0,1.66893289]
[1720755007856,0.122446,57168.0,57160.0,0.262162]
[1720755008129,0.122446,57168.0,57161.0,0.00349852]
[1720755008609,0.02553054,57170.0,57163.0,0.384609]
[1720755008842,0.02553054,57170.0,57164.0,0.12595127]
[1720755009051,0.138039,57171.0,57164.0,0.00349827]
[1720755009266,0.12245,57166.0,57163.0,0.0763]
[1720755009476,0.122454,57165.0,57163.0,0.0763]
[1720755009895,0.122452,57165.0,57163.0,0.0763]
[1720755010102,0.122452,57165.0,57160.0,0.1397]
[1720755010314,0.122452,57165.0,57160.0,0.165917]
[1720755010533,0.122466,57159.0,57156.0,0.1397]
[1720755010746,0.122466,57159.0,57156.0,0.20138]
[1720755011593,0.244933,57159.0,57156.0,0.0763]
[1720755011796,0.122469,57158.0,57153.0,0.1397]
[1720755012013,0.122469,57157.0,57153.0,0.1397]
[1720755012261,0.122469,57157.0,57156.0,0.019]
[1720755012619,0.244926,57160.0,57156.0,0.019]
[1720755012620,0.122468,57158.0,57156.0,0.019]
[1720755013654,0.122466,57159.0,57156.0,0.01]
[1720755013864,0.0608,57162.0,57156.0,0.02497]
[1720755014082,0.0703,57169.0,57158.0,0.1458]
[1720755014320,0.01922748,57168.0,57160.0,0.122461]
[1720755014542,0.00083,57168.0,57167.0,0.242448]
[1720755014790,0.00083,57168.0,57167.0,1.48699002]
[1720755015000,0.00083,57168.0,57167.0,1.78699002]
[1720755015216,0.00083,57168.0,57167.0,1.58699002]
[1720755015646,0.00083,57168.0,57167.0,1.58349224]
[1720755016093,0.00083,57168.0,57167.0,0.75070024]
[1720755016295,0.00083,57168.0,57167.0,0.89370024]
[1720755016531,0.00083,57168.0,57167.0,1.13859624]
[1720755017980,0.00083,57168.0,57167.0,1.14959624]
[1720755017981,0.00183,57168.0,57167.0,1.14959624]
[1720755018413,0.00183,57168.0,57167.0,1.16059624]
[1720755020533,0.00183,57168.0,57167.0,1.40549224]
[1720755021009,0.00183,57168.0,57167.0,1.70549224]
[1720755021656,0.00183,57168.0,57167.0,2.05038824]
[1720755021864,0.00641138,57188.0,57175.0,1.377017]
[1720755022075,0.00641138,57188.0,57175.0,1.87429335]
[1720755022293,0.00641138,57188.0,57175.0,2.07909335]
[1720755023147,0.00641138,57188.0,57187.0,0.628315]
[1720755023391,0.00641138,57188.0,57187.0,1.645735]
[1720755023593,0.00641138,57188.0,57187.0,1.59346124]
[1720755024003,0.00641138,57188.0,57187.0,1.83827124]
[1720755024405,0.00641138,57188.0,57187.0,1.93827124]
[1720755024756,0.00641138,57188.0,57187.0,2.05227124]
[1720755025204,0.00641138,57188.0,57187.0,1.95227124]
[1720755025404,0.00641138,57188.0,57187.0,2.06627124]
[1720755025646,0.00641138,57188.0,57187.0,1.86627124]
[1720755025849,0.00641138,57188.0,57187.0,1.52146124]
[1720755026027,0.00641138,57188.0,57187.0,1.62146124]
[1720755026634,0.00641138,57188.0,57187.0,1.52146124]
[1720755026882,0.00641138,57188.0,57187.0,1.62146124]
[1720755027107,0.00641138,57188.0,57187.0,0.81184124]
[1720755027323,0.00641138,57188.0,57187.0,0.33923124]
[1720755027752,0.00641138,57188.0,57187.0,0.028]
[1720755028171,0.50992038,57188.0,57187.0,0.028]
[1720755028380,0.26511438,57188.0,57187.0,0.028]
[1720755028639,0.364778,57195.0,57187.0,0.028]
[1720755028640,0.122388,57195.0,57187.0,0.136404]
[1720755028856,0.1,57198.0,57188.0,0.0282004]
[1720755028857,0.1,57194.0,57188.0,0.0282004]
[1720755029267,0.00306353,57193.0,57188.0,0.0282004]
[1720755029472,0.00306353,57193.0,57188.0,0.1506024]
[1720755029682,0.2,57212.0,57188.0,0.1506024]
[1720755029683,0.12083,57205.0,57193.0,0.244785]
[1720755029895,0.1,57204.0,57194.0,0.1435]
[1720755030103,0.00083,57205.0,57195.0,0.1612155]
[1720755030104,0.122371,57203.0,57195.0,0.1612155]
[1720755030533,0.1,57202.0,57195.0,0.0388285]
[1720755030747,0.122376,57201.0,57195.0,0.0388285]
[1720755030951,0.122376,57201.0,57196.0,0.03047205]
[1720755031152,0.1,57202.0,57196.0,0.15285705]
[1720755031566,0.122369,57204.0,57196.0,0.15285705]
[1720755031783,0.003,57203.0,57196.0,0.15285705]
[1720755031988,0.225371,57203.0,57196.0,0.03047205]
[1720755032193,0.103,57203.0,57196.0,0.03047205]
[1720755032404,0.12543753,57202.0,57196.0,0.03047205]
[1720755032613,0.1,57201.0,57196.0,0.03047205]
[1720755032822,0.1,57201.0,57196.0,0.03447205]
[1720755033226,0.1,57201.0,57197.0,0.05122682]
[1720755033655,0.222373,57202.0,57197.0,0.05122682]
[1720755034723,0.222373,57202.0,57197.0,0.05522682]
[1720755035089,0.222373,57202.0,57197.0,0.05122682]
[1720755035283,0.222373,57202.0,57198.0,0.03864164]
[1720755035486,0.122379,57199.0,57198.0,0.03864164]
[1720755035710,0.222373,57202.0,57196.0,0.005]
[1720755035913,0.00306353,57198.0,57194.0,0.265889]
[1720755036131,0.00306353,57198.0,57197.0,0.006]
[1720755036522,0.122381,57198.0,57197.0,0.002]
[1720755037314,0.122378,57200.0,57197.0,0.002]
[1720755037540,0.122378,57200.0,57194.0,0.0781]
[1720755037745,0.122378,57200.0,57196.0,0.002]
[1720755037951,0.00306353,57199.0,57196.0,0.002]
[1720755038360,0.00306353,57199.0,57195.0,0.02039906]
[1720755038591,0.122378,57200.0,57195.0,0.02039906]
[1720755038967,0.122378,57200.0,57197.0,0.004]
[1720755039168,0.122378,57200.0,57197.0,0.01424991]
[1720755039321,0.122378,57200.0,57197.0,0.01024991]
[1720755040076,0.122376,57201.0,57197.0,0.01024991]
[1720755040521,0.1,57202.0,57199.0,0.08511435]
[1720755040736,0.00083,57205.0,57200.0,0.01623643]
[1720755041384,0.00083,57205.0,57200.0,0.13861343]
[1720755041777,0.00083,57205.0,57200.0,0.01623643]
[1720755042160,0.00283,57205.0,57200.0,0.01623643]
[1720755042388,0.00283,57205.0,57200.0,0.13861343]
[1720755042574,0.0288733,57205.0,57201.0,0.07078806]
[1720755042780,0.00283,57205.0,57201.0,0.07078806]
[1720755044126,0.00383,57205.0,57201.0,0.07078806]
[1720755044366,0.00283,57205.0,57201.0,0.07078806]
[1720755044576,0.00283,57205.0,57202.0,0.05191565]
[1720755044788,0.00283,57205.0,57203.0,0.0809]
[1720755045193,0.00083,57205.0,57203.0,0.0809]
[1720755045409,0.00283,57205.0,57203.0,0.0809]
[1720755046031,0.00083,57205.0,57203.0,0.0809]
[1720755046262,0.00183,57205.0,57203.0,0.1339252]
[1720755047732,0.028833,57205.0,57203.0,0.1339252]
[1720755051337,0.21201777,57211.0,57204.0,0.0659]
[1720755051562,0.122358,57209.0,57205.0,0.03741148]
[1720755051987,0.122361,57208.0,57205.0,0.03741148]
[1720755052213,0.12236,57208.0,57205.0,0.03741148]
[1720755052654,0.367076,57209.0,57205.0,0.03741148]
[1720755052875,0.12236,57208.0,57205.0,0.03741148]
[1720755053096,0.122362,57207.0,57206.0,0.01702271]
[1720755053315,0.122366,57206.0,57204.0,0.001]
[1720755053533,0.10306353,57205.0,57204.0,0.001]
[1720755054850,0.10306353,57205.0,57199.0,0.122379]
[1720755054851,0.10306353,57205.0,57198.0,0.202681]
[1720755055062,0.10306353,57205.0,57199.0,0.0754024]
[1720755055271,0.10306353,57205.0,57199.0,0.1977804]
[1720755055657,0.00306353,57205.0,57199.0,0.1977804]
[1720755055911,0.00306353,57205.0,57198.0,0.0803]
[1720755055912,0.244746,57202.0,57194.0,0.5564]
[1720755056112,0.122378,57200.0,57194.0,0.5564]
[1720755056328,0.122378,57200.0,57195.0,0.0739892]
[1720755056540,0.122388,57195.0,57194.0,0.5564]
[1720755056753,0.122388,57195.0,57186.0,0.2048]
[1720755056754,0.0439,57196.0,57186.0,0.1404]
[1720755056976,0.122401,57189.0,57186.0,0.0793]
[1720755057174,0.00306353,57195.0,57186.0,0.0793]
[1720755057175,0.244795,57191.0,57186.0,0.1471814]
[1720755057393,0.244803,57189.0,57186.0,0.1471814]
[1720755057608,0.122403,57188.0,57186.0,0.1471814]
[1720755057826,0.00306353,57187.0,57186.0,0.1471814]
[1720755058068,0.00306353,57187.0,57186.0,0.0793]
[1720755058237,0.00306353,57188.0,57186.0,0.0793]
[1720755058962,0.00306353,57188.0,57186.0,0.0813]
[1720755060018,0.00306353,57189.0,57186.0,0.0843]
[1720755060229,0.00306353,57189.0,57188.0,0.0605]
[1720755060435,0.2,57214.0,57188.0,0.0605]
[1720755060436,0.10306353,57202.0,57188.0,0.506106]
[1720755060673,0.0241099,57196.0,57195.0,0.122386]
[1720755060895,0.1,57201.0,57195.0,0.122386]
[1720755061173,0.1,57201.0,57197.0,0.0663]
[1720755061381,0.1,57201.0,57197.0,0.1451]
[1720755062080,0.344749,57202.0,57197.0,0.1451]
[1720755062312,0.122377,57200.0,57198.0,0.01451]
[1720755062542,0.1,57199.0,57198.0,0.01451]
[1720755062787,0.244741,57204.0,57198.0,0.01451]
[1720755062788,0.244743,57203.0,57198.0,0.01451]
[1720755063014,0.122368,57205.0,57199.0,0.016061]
[1720755063266,0.001,57201.0,57199.0,0.016061]
[1720755064196,0.122377,57201.0,57198.0,0.01451]
[1720755064635,0.244718,57209.0,57198.0,0.02051]
[1720755064851,0.244718,57209.0,57199.0,0.016561]
[1720755064852,0.122372,57203.0,57199.0,0.016561]
[1720755065322,0.12237,57204.0,57199.0,0.019561]
[1720755065513,0.122369,57204.0,57200.0,0.0409432]
[1720755065937,0.244726,57207.0,57200.0,0.0409432]
[1720755066361,0.1,57206.0,57200.0,0.1633192]
[1720755066605,0.1,57206.0,57200.0,0.0409432]
[1720755066842,0.1,57206.0,57199.0,0.016561]
[1720755067070,0.122373,57202.0,57198.0,0.001]
[1720755067675,0.122371,57203.0,57197.0,0.1451]
[1720755067889,0.122371,57203.0,57198.0,0.0267485]
[1720755068132,0.122371,57203.0,57199.0,0.001]
[1720755068773,0.244736,57205.0,57199.0,0.001]
[1720755068980,0.122372,57203.0,57198.0,0.0267485]
[1720755069215,0.122372,57203.0,57199.0,0.02942355]
[1720755070932,0.122369,57204.0,57199.0,0.02942355]
[1720755071568,0.02565439,57203.0,57199.0,0.02942355]
[1720755071791,0.122369,57204.0,57199.0,0.03042355]
[1720755072010,0.025657,57203.0,57200.0,0.02969066]
[1720755072218,0.122369,57204.0,57200.0,0.02969066]
[1720755072444,0.02563857,57203.0,57200.0,0.02969066]
[1720755072654,0.122369,57204.0,57200.0,0.02969066]
[1720755072860,0.02563863,57203.0,57201.0,0.03275972]
[1720755073077,0.122369,57204.0,57201.0,0.03275972]
[1720755073287,0.02564019,57203.0,57201.0,0.03275972]
[1720755073505,0.122369,57204.0,57201.0,0.03275972]
[1720755073647,0.02565091,57203.0,57201.0,0.03275972]
[1720755073871,0.14681029,57205.0,57201.0,0.03275972]
[1720755074075,0.02565144,57204.0,57202.0,0.01855643]
[1720755074320,0.02565144,57203.0,57202.0,0.01855643]
[1720755074503,0.02566754,57203.0,57202.0,0.01855643]
[1720755074928,0.02566628,57203.0,57202.0,0.01855643]
[1720755075143,0.122381,57198.0,57197.0,0.0788]
[1720755075299,0.122381,57198.0,57192.0,0.4771]
[1720755075300,0.122392,57193.0,57192.0,0.4771]
[1720755075492,0.122401,57189.0,57186.0,0.0647]
[1720755075681,0.00306353,57188.0,57187.0,0.11146]